fUST/lending_fUST_20260509
["ID","MTS","AMOUNT","RATE_DAILY","PERIOD"]
[421888828,1778295033000,-151.999581,0.00012563,2]
[421888832,1778295033000,-151.999581,0.00012563,2]
[421888833,1778295033000,-134.81571445,0.00012563,2]
[421888831,1778295033000,-151.999581,0.00012563,2]
[421888861,1778295041000,-151.999581,0.00012563,2]
[421888854,1778295041000,-151.999581,0.00012563,2]
[421888856,1778295041000,-151.999581,0.00012563,2]
[421888855,1778295041000,-151.999581,0.00012563,2]
[421888857,1778295041000,-151.999581,0.00012563,2]
[421888859,1778295041000,-151.999581,0.00012563,2]
[421888860,1778295041000,-151.999581,0.00012563,2]
[421888862,1778295041000,-151.999581,0.00012563,2]
[421888864,1778295041000,-151.999581,0.00012563,2]
[421888863,1778295041000,-151.999581,0.00012563,2]
[421888853,1778295041000,-17.18386655,0.00012563,2]
[421888866,1778295041000,-151.999581,0.00012563,2]
[421888865,1778295041000,-151.999581,0.00012563,2]
[421888875,1778295041000,-160.0,0.00014254,2]
[421888874,1778295041000,-720.0,0.00014095,2]
[421888873,1778295041000,-1000.0,0.00013699,2]
[421888872,1778295041000,-247.37857121,0.0001342,2]
[421888858,1778295041000,-151.999581,0.00012563,2]
[421888871,1778295041000,-194.0,0.00013288,3]
[421888869,1778295041000,-79.28241845,0.00012813,2]
[421888868,1778295041000,-151.999581,0.00012563,2]
[421888867,1778295041000,-151.999581,0.00012563,2]
[421888870,1778295041000,-520.71758155,0.00012813,2]
[421888876,1778295042000,-161.5993154,0.00014254,2]
[421888908,1778295042000,-864.0,0.00015504,2]
[421888910,1778295042000,-500.0,0.00015905,2]
[421888909,1778295042000,-500.0,0.00015631,2]
[421888919,1778295042000,-4149.83882016,0.000169,2]
[421888912,1778295042000,-504.254818,0.00016323,5]
[421888913,1778295042000,-500.0,0.00016453,2]
[421888920,1778295042000,-150.45830073,0.00016973,2]
[421888916,1778295042000,-500.0,0.00016727,2]
[421888917,1778295042000,-156.587,0.00016739,2]
[421888914,1778295042000,-1002.38,0.000166,5]
[421888915,1778295042000,-343.523,0.00016662,2]
[421888918,1778295042000,-346.0,0.00016897,2]
[421888922,1778295042000,-500.0,0.00016973,2]
[421888911,1778295042000,-500.0,0.00016179,2]
[421888901,1778295042000,-189.0,0.00015203,2]
[421888904,1778295042000,-500.0,0.00015357,2]
[421888903,1778295042000,-164.33,0.00015342,2]
[421888932,1778295042000,-945.33707603,0.00016999,2]
[421888878,1778295042000,-500.0,0.00014362,2]
[421888886,1778295042000,-582.47786515,0.00014809,2]
[421888883,1778295042000,-500.0,0.00014809,2]
[421888881,1778295042000,-613.15075279,0.00014636,2]
[421888888,1778295042000,-500.0,0.00015067,2]
[421888879,1778295042000,-1000.0,0.00014501,2]
[421888877,1778295042000,-160.0,0.00014254,2]
[421888892,1778295042000,-167.665764,0.00015068,2]
[421888890,1778295042000,-500.0,0.00015068,2]
[421888896,1778295042000,-2224.459,0.00015203,2]
[421888898,1778295042000,-648.671,0.00015203,2]
[421888905,1778295042000,-151.0,0.0001537,2]
[421888894,1778295042000,-500.0,0.00015083,2]
[421888900,1778295042000,-1417.527,0.00015203,2]
[421888907,1778295042000,-179.0,0.00015479,3]
[421888906,1778295042000,-285.11428547,0.0001542,2]
[421888902,1778295042000,-185.0,0.00015203,2]
[421888926,1778295042000,-945.33707603,0.00016999,2]
[421888950,1778295042000,-945.33707603,0.00016999,2]
[421888961,1778295042000,-1008.35954777,0.00016999,2]
[421888963,1778295042000,-500.0,0.00017,2]
[421888962,1778295042000,-500.0,0.00017,2]
[421888952,1778295042000,-500.0,0.00016999,2]
[421888954,1778295042000,-538.58749577,0.00016999,2]
[421888957,1778295042000,-1008.35954777,0.00016999,2]
[421888960,1778295042000,-1008.35954777,0.00016999,2]
[421888958,1778295042000,-1008.35954777,0.00016999,2]
[421888956,1778295042000,-1008.35954777,0.00016999,2]
[421888955,1778295042000,-1008.35954777,0.00016999,2]
[421888964,1778295042000,-97438.09036923,0.00017,2]
[421888966,1778295042000,-560.6225,0.00017,2]
[421888965,1778295042000,-458.9215886,0.00017,2]
[421888967,1778295042000,-3779.90698828,0.00017,2]
[421888925,1778295042000,-363.40824412,0.00016999,2]
[421888953,1778295042000,-945.33707603,0.00016999,2]
[421888959,1778295042000,-1008.35954777,0.00016999,2]
[421888923,1778295042000,-989.77604581,0.00016989,5]
[421888943,1778295042000,-945.33707603,0.00016999,2]
[421888948,1778295042000,-500.0,0.00016999,2]
[421888929,1778295042000,-945.33707603,0.00016999,2]
[421888927,1778295042000,-945.33707603,0.00016999,2]
[421888928,1778295042000,-945.33707603,0.00016999,2]
[421888930,1778295042000,-945.33707603,0.00016999,2]
[421888934,1778295042000,-945.33707603,0.00016999,2]
[421888946,1778295042000,-500.0,0.00016999,2]
[421888945,1778295042000,-945.33707603,0.00016999,2]
[421888931,1778295042000,-945.33707603,0.00016999,2]
[421888933,1778295042000,-945.33707603,0.00016999,2]
[421888935,1778295042000,-945.33707603,0.00016999,2]
[421888938,1778295042000,-945.33707603,0.00016999,2]
[421888941,1778295042000,-945.33707603,0.00016999,2]
[421888936,1778295042000,-945.33707603,0.00016999,2]
[421888937,1778295042000,-945.33707603,0.00016999,2]
[421888940,1778295042000,-945.33707603,0.00016999,2]
[421888939,1778295042000,-945.33707603,0.00016999,2]
[421888986,1778295044000,-3449.19726663,0.00017,2]
[421888989,1778295044000,-7524.02226955,0.00017,2]
[421888987,1778295044000,-2907.15669367,0.00017,2]
[421888988,1778295044000,-2092.84330633,0.00017,2]
[421888991,1778295044000,-12337.5079093,0.00017,2]
[421888990,1778295044000,-380.183,0.00017,2]
[421888992,1778295044000,-251.11704093,0.00017,2]
[421888985,1778295044000,-1748.61297221,0.00017,2]
[421889005,1778295047000,-89671.52429767,0.00017,2]
[421889004,1778295047000,-5173.0,0.00017,2]
[421889014,1778295150000,1500000.0,0.0001917,120]
[421889094,1778296231000,-190.30356123,8.5e-05,7]
[421889100,1778296231000,-4871.68186127,0.00012389,2]
[421889098,1778296231000,-128.31813873,0.00012389,2]
[421889104,1778296231000,-1844.26627831,0.00012514,2]
[421889102,1778296231000,-237.50235146,0.00012445,2]
[421889096,1778296231000,-201.2731792,0.00010445,2]
[421889378,1778296238000,-500.0,0.00015063,2]
[421889372,1778296238000,-500.0,0.00015063,2]
[421889381,1778296238000,-500.0,0.00015063,2]
[421889379,1778296238000,-500.0,0.00015063,2]
[421889377,1778296238000,-500.0,0.00015063,2]
[421889383,1778296238000,-500.0,0.00015063,2]
[421889382,1778296238000,-500.0,0.00015063,2]
[421889385,1778296238000,-500.0,0.00015063,2]
[421889384,1778296238000,-500.0,0.00015063,2]
[421889388,1778296238000,-500.0,0.00015063,2]
[421889389,1778296238000,-500.0,0.00015063,2]
[421889386,1778296238000,-500.0,0.00015063,2]
[421889391,1778296238000,-502.86561275,0.00015063,2]
[421889395,1778296238000,-500.0,0.00015063,2]
[421889394,1778296238000,-500.0,0.00015063,2]
[421889393,1778296238000,-500.0,0.00015063,2]
[421889392,1778296238000,-500.0,0.00015063,2]
[421889396,1778296238000,-500.0,0.00015063,2]
[421889403,1778296238000,-500.0,0.00015064,2]
[421889399,1778296238000,-500.0,0.00015064,2]
[421889402,1778296238000,-500.0,0.00015064,2]
[421889376,1778296238000,-500.0,0.00015063,2]
[421889387,1778296238000,-167.99573582,0.00015063,2]
[421889380,1778296238000,-500.0,0.00015063,2]
[421889357,1778296238000,-1000.0,0.000148,3]
[421889373,1778296238000,-500.0,0.00015063,2]
[421889350,1778296238000,-5000.0,0.00012389,2]
[421889351,1778296238000,-1801.60124436,0.00012514,2]
[421889352,1778296238000,-300.0,0.00013698,2]
[421889353,1778296238000,-1000.0,0.00013699,2]
[421889354,1778296238000,-1000.0,0.00013699,2]
[421889355,1778296238000,-300.0,0.00014279,2]
[421889356,1778296238000,-273.73152371,0.00014445,2]
[421889397,1778296238000,-500.0,0.00015063,2]
[421889361,1778296238000,-420.0,0.00015011,2]
[421889359,1778296238000,-322.0,0.00014904,3]
[421889362,1778296238000,-151.0,0.00015058,2]
[421889363,1778296238000,-151.0,0.00015058,2]
[421889360,1778296238000,-327.02752238,0.00014965,2]
[421889364,1778296238000,-151.0,0.00015058,2]
[421889358,1778296238000,-160.0,0.0001483,2]
[421889365,1778296238000,-151.0,0.00015058,2]
[421889366,1778296238000,-151.0,0.00015058,2]
[421889367,1778296238000,-247.88048923,0.00015058,2]
[421889369,1778296238000,-500.0,0.00015063,2]
[421889368,1778296238000,-500.0,0.00015063,2]
[421889370,1778296238000,-500.0,0.00015063,2]
[421889371,1778296238000,-500.0,0.00015063,2]
[421889374,1778296238000,-500.0,0.00015063,2]
[421889375,1778296238000,-500.0,0.00015063,2]
[421889398,1778296238000,-500.0,0.00015063,2]
[421889390,1778296238000,-500.0,0.00015063,2]
[421889401,1778296238000,-500.0,0.00015064,2]
[421889440,1778296238000,-500.0,0.00015065,2]
[421889432,1778296238000,-500.0,0.00015064,2]
[421889431,1778296238000,-500.0,0.00015064,2]
[421889441,1778296238000,-505.3856768,0.00015065,2]
[421889429,1778296238000,-500.0,0.00015064,2]
[421889434,1778296238000,-500.0,0.00015064,2]
[421889439,1778296238000,-500.0,0.00015065,2]
[421889435,1778296238000,-500.0,0.00015064,2]
[421889436,1778296238000,-500.0,0.00015065,2]
[421889437,1778296238000,-500.0,0.00015065,2]
[421889438,1778296238000,-500.0,0.00015065,2]
[421889433,1778296238000,-500.0,0.00015064,2]
[421889443,1778296238000,-500.72270253,0.00015065,2]
[421889446,1778296238000,-500.0,0.00015065,2]
[421889442,1778296238000,-500.0,0.00015065,2]
[421889444,1778296238000,-500.0,0.00015065,2]
[421889445,1778296238000,-500.0,0.00015065,2]
[421889447,1778296238000,-500.9051087,0.00015065,2]
[421889449,1778296238000,-629.24851352,0.00015065,2]
[421889450,1778296238000,-500.0,0.00015065,2]
[421889452,1778296238000,-500.0,0.00015065,2]
[421889448,1778296238000,-500.0,0.00015065,2]
[421889451,1778296238000,-500.0,0.00015065,2]
[421889400,1778296238000,-500.0,0.00015064,2]
[421889454,1778296238000,-500.0,0.00015065,2]
[421889430,1778296238000,-500.0,0.00015064,2]
[421889453,1778296238000,-500.0,0.00015065,2]
[421889426,1778296238000,-500.0,0.00015064,2]
[421889413,1778296238000,-500.0,0.00015064,2]
[421889421,1778296238000,-500.0,0.00015064,2]
[421889405,1778296238000,-500.0,0.00015064,2]
[421889406,1778296238000,-500.0,0.00015064,2]
[421889414,1778296238000,-500.0,0.00015064,2]
[421889415,1778296238000,-500.0,0.00015064,2]
[421889407,1778296238000,-500.0,0.00015064,2]
[421889411,1778296238000,-500.0,0.00015064,2]
[421889404,1778296238000,-500.0,0.00015064,2]
[421889410,1778296238000,-500.0,0.00015064,2]
[421889409,1778296238000,-500.0,0.00015064,2]
[421889412,1778296238000,-500.0,0.00015064,2]
[421889408,1778296238000,-500.0,0.00015064,2]
[421889417,1778296238000,-500.0,0.00015064,2]
[421889422,1778296238000,-500.0,0.00015064,2]
[421889425,1778296238000,-500.0,0.00015064,2]
[421889423,1778296238000,-477.35826393,0.00015064,2]
[421889424,1778296238000,-647.56,0.00015064,2]
[421889428,1778296238000,-500.0,0.00015064,2]
[421889420,1778296238000,-377.69784998,0.00015064,2]
[421889427,1778296238000,-500.0,0.00015064,2]
[421889418,1778296238000,-500.0,0.00015064,2]
[421889416,1778296238000,-500.0,0.00015064,2]
[421889419,1778296238000,-500.0,0.00015064,2]
[421889509,1778296239000,-500.0,0.00015065,2]
[421889499,1778296239000,-500.0,0.00015065,2]
[421889489,1778296239000,-217.68901601,0.00015065,2]
[421889510,1778296239000,-500.0,0.00015065,2]
[421889493,1778296239000,-500.0,0.00015065,2]
[421889492,1778296239000,-500.0,0.00015065,2]
[421889488,1778296239000,-500.0,0.00015065,2]
[421889490,1778296239000,-500.0,0.00015065,2]
[421889486,1778296239000,-500.0,0.00015065,2]
[421889485,1778296239000,-500.0,0.00015065,2]
[421889502,1778296239000,-500.0,0.00015065,2]
[421889483,1778296239000,-500.0,0.00015065,2]
[421889491,1778296239000,-500.0,0.00015065,2]
[421889507,1778296239000,-500.0,0.00015065,2]
[421889524,1778296239000,-500.0,0.00015065,2]
[421889505,1778296239000,-500.0,0.00015065,2]
[421889498,1778296239000,-500.0,0.00015065,2]
[421889504,1778296239000,-857.130698,0.00015065,2]
[421889501,1778296239000,-500.0,0.00015065,2]
[421889506,1778296239000,-500.0,0.00015065,2]
[421889508,1778296239000,-500.0,0.00015065,2]
[421889512,1778296239000,-306.93678641,0.00015065,2]
[421889523,1778296239000,-500.0,0.00015065,2]
[421889522,1778296239000,-500.0,0.00015065,2]
[421889511,1778296239000,-500.0,0.00015065,2]
[421889513,1778296239000,-500.0,0.00015065,2]
[421889497,1778296239000,-500.0,0.00015065,2]
[421889517,1778296239000,-500.0,0.00015065,2]
[421889500,1778296239000,-500.0,0.00015065,2]
[421889494,1778296239000,-289.68231889,0.00015065,2]
[421889461,1778296239000,-500.0,0.00015065,2]
[421889496,1778296239000,-500.0,0.00015065,2]
[421889516,1778296239000,-500.0,0.00015065,2]
[421889456,1778296239000,-500.0,0.00015065,2]
[421889455,1778296239000,-512.7922546,0.00015065,2]
[421889468,1778296239000,-500.0,0.00015065,2]
[421889460,1778296239000,-500.0,0.00015065,2]
[421889466,1778296239000,-500.0,0.00015065,2]
[421889464,1778296239000,-192.65443499,0.00015065,2]
[421889467,1778296239000,-500.0,0.00015065,2]
[421889457,1778296239000,-500.0,0.00015065,2]
[421889458,1778296239000,-500.0,0.00015065,2]
[421889463,1778296239000,-500.0,0.00015065,2]
[421889462,1778296239000,-500.0,0.00015065,2]
[421889459,1778296239000,-500.0,0.00015065,2]
[421889465,1778296239000,-500.0,0.00015065,2]
[421889471,1778296239000,-500.0,0.00015065,2]
[421889475,1778296239000,-500.0,0.00015065,2]
[421889469,1778296239000,-500.0,0.00015065,2]
[421889477,1778296239000,-500.0,0.00015065,2]
[421889474,1778296239000,-500.0,0.00015065,2]
[421889473,1778296239000,-500.0,0.00015065,2]
[421889472,1778296239000,-500.0,0.00015065,2]
[421889476,1778296239000,-396.83572779,0.00015065,2]
[421889479,1778296239000,-500.0,0.00015065,2]
[421889478,1778296239000,-500.0,0.00015065,2]
[421889480,1778296239000,-500.0,0.00015065,2]
[421889482,1778296239000,-500.0,0.00015065,2]
[421889470,1778296239000,-500.0,0.00015065,2]
[421889481,1778296239000,-500.0,0.00015065,2]
[421889484,1778296239000,-500.0,0.00015065,2]
[421889495,1778296239000,-500.0,0.00015065,2]
[421889514,1778296239000,-500.0,0.00015065,2]
[421889562,1778296239000,-500.0,0.00015065,2]
[421889518,1778296239000,-500.0,0.00015065,2]
[421889555,1778296239000,-500.0,0.00015065,2]
[421889557,1778296239000,-500.0,0.00015065,2]
[421889561,1778296239000,-500.0,0.00015065,2]
[421889563,1778296239000,-500.0,0.00015065,2]
[421889560,1778296239000,-625.21245921,0.00015065,2]
[421889556,1778296239000,-500.0,0.00015065,2]
[421889558,1778296239000,-500.0,0.00015065,2]
[421889559,1778296239000,-500.0,0.00015065,2]
[421889569,1778296239000,-500.0,0.00015065,2]
[421889579,1778296239000,-500.0,0.00015065,2]
[421889581,1778296239000,-500.0,0.00015065,2]
[421889584,1778296239000,-504.65366377,0.00015065,2]
[421889583,1778296239000,-500.0,0.00015065,2]
[421889570,1778296239000,-500.0,0.00015065,2]
[421889568,1778296239000,-500.0,0.00015065,2]
[421889585,1778296239000,-238.8388998,0.00015065,2]
[421889572,1778296239000,-500.0,0.00015065,2]
[421889571,1778296239000,-500.0,0.00015065,2]
[421889575,1778296239000,-500.0,0.00015065,2]
[421889573,1778296239000,-502.5791843,0.00015065,2]
[421889577,1778296239000,-500.0,0.00015065,2]
[421889586,1778296239000,-500.0,0.00015065,2]
[421889589,1778296239000,-503.69908368,0.00015065,2]
[421889588,1778296239000,-623.89704548,0.00015065,2]
[421889591,1778296239000,-1007.30898986,0.00015065,2]
[421889593,1778296239000,-503.59217315,0.00015065,2]
[421889587,1778296239000,-504.71514448,0.00015065,2]
[421889592,1778296239000,-506.26674117,0.00015065,2]
[421889515,1778296239000,-500.0,0.00015065,2]
[421889553,1778296239000,-513.58756454,0.00015065,2]
[421889567,1778296239000,-500.0,0.00015065,2]
[421889590,1778296239000,-500.0,0.00015065,2]
[421889565,1778296239000,-500.0,0.00015065,2]
[421889566,1778296239000,-339.20998614,0.00015065,2]
[421889520,1778296239000,-500.0,0.00015065,2]
[421889519,1778296239000,-500.0,0.00015065,2]
[421889525,1778296239000,-500.0,0.00015065,2]
[421889528,1778296239000,-500.0,0.00015065,2]
[421889529,1778296239000,-500.0,0.00015065,2]
[421889526,1778296239000,-500.0,0.00015065,2]
[421889527,1778296239000,-500.0,0.00015065,2]
[421889530,1778296239000,-500.0,0.00015065,2]
[421889532,1778296239000,-500.0,0.00015065,2]
[421889533,1778296239000,-500.0,0.00015065,2]
[421889531,1778296239000,-500.0,0.00015065,2]
[421889534,1778296239000,-500.0,0.00015065,2]
[421889536,1778296239000,-500.0,0.00015065,2]
[421889535,1778296239000,-500.0,0.00015065,2]
[421889521,1778296239000,-500.0,0.00015065,2]
[421889549,1778296239000,-500.0,0.00015065,2]
[421889538,1778296239000,-500.0,0.00015065,2]
[421889564,1778296239000,-500.0,0.00015065,2]
[421889542,1778296239000,-500.0,0.00015065,2]
[421889544,1778296239000,-500.0,0.00015065,2]
[421889545,1778296239000,-500.0,0.00015065,2]
[421889547,1778296239000,-500.0,0.00015065,2]
[421889543,1778296239000,-500.0,0.00015065,2]
[421889541,1778296239000,-500.0,0.00015065,2]
[421889551,1778296239000,-500.0,0.00015065,2]
[421889539,1778296239000,-500.0,0.00015065,2]
[421889540,1778296239000,-500.0,0.00015065,2]
[421889537,1778296239000,-208.7735196,0.00015065,2]
[421889546,1778296239000,-500.0,0.00015065,2]
[421889637,1778296240000,-500.0,0.00015065,2]
[421889649,1778296240000,-500.0,0.00015065,2]
[421889650,1778296240000,-507.88241507,0.00015065,2]
[421889640,1778296240000,-483.19719927,0.00015065,2]
[421889626,1778296240000,-503.88305949,0.00015065,2]
[421889633,1778296240000,-504.63030801,0.00015065,2]
[421889638,1778296240000,-503.3116333,0.00015065,2]
[421889634,1778296240000,-500.0,0.00015065,2]
[421889632,1778296240000,-500.0,0.00015065,2]
[421889635,1778296240000,-502.90519212,0.00015065,2]
[421889631,1778296240000,-212.25983889,0.00015065,2]
[421889636,1778296240000,-504.10575413,0.00015065,2]
[421889648,1778296240000,-500.0,0.00015065,2]
[421889647,1778296240000,-500.0,0.00015065,2]
[421889651,1778296240000,-502.78940998,0.00015065,2]
[421889642,1778296240000,-322.31045745,0.00015065,2]
[421889639,1778296240000,-502.70472993,0.00015065,2]
[421889644,1778296240000,-500.0,0.00015065,2]
[421889643,1778296240000,-506.57159315,0.00015065,2]
[421889646,1778296240000,-500.0,0.00015065,2]
[421889645,1778296240000,-500.0,0.00015065,2]
[421889653,1778296240000,-505.99445462,0.00015065,2]
[421889654,1778296240000,-502.09881127,0.00015065,2]
[421889655,1778296240000,-500.0,0.00015065,2]
[421889657,1778296240000,-500.0,0.00015065,2]
[421889664,1778296240000,-500.0,0.00015065,2]
[421889630,1778296240000,-519.08509164,0.00015065,2]
[421889659,1778296240000,-384.55113174,0.00015065,2]
[421889652,1778296240000,-500.0,0.00015065,2]
[421889628,1778296240000,-503.43655903,0.00015065,2]
[421889612,1778296240000,-500.0,0.00015065,2]
[421889627,1778296240000,-501.5611146,0.00015065,2]
[421889667,1778296240000,-500.0,0.00015065,2]
[421889594,1778296240000,-503.69664462,0.00015065,2]
[421889595,1778296240000,-172.46969494,0.00015065,2]
[421889596,1778296240000,-503.53806796,0.00015065,2]
[421889598,1778296240000,-500.0,0.00015065,2]
[421889608,1778296240000,-500.0,0.00015065,2]
[421889609,1778296240000,-503.20414665,0.00015065,2]
[421889597,1778296240000,-503.92763272,0.00015065,2]
[421889610,1778296240000,-500.0,0.00015065,2]
[421889606,1778296240000,-500.0,0.00015065,2]
[421889600,1778296240000,-502.33085419,0.00015065,2]
[421889603,1778296240000,-503.68116363,0.00015065,2]
[421889602,1778296240000,-500.0,0.00015065,2]
[421889599,1778296240000,-500.0,0.00015065,2]
[421889604,1778296240000,-503.08872641,0.00015065,2]
[421889601,1778296240000,-500.0,0.00015065,2]
[421889622,1778296240000,-237.60872934,0.00015065,2]
[421889614,1778296240000,-500.0,0.00015065,2]
[421889623,1778296240000,-500.0,0.00015065,2]
[421889611,1778296240000,-305.66709986,0.00015065,2]
[421889624,1778296240000,-500.0,0.00015065,2]
[421889613,1778296240000,-500.0,0.00015065,2]
[421889620,1778296240000,-504.090333,0.00015065,2]
[421889617,1778296240000,-500.0,0.00015065,2]
[421889619,1778296240000,-500.0,0.00015065,2]
[421889616,1778296240000,-526.29648325,0.00015065,2]
[421889621,1778296240000,-273.36758443,0.00015065,2]
[421889618,1778296240000,-263.3389537,0.00015065,2]
[421889625,1778296240000,-500.0,0.00015065,2]
[421889629,1778296240000,-500.0,0.00015065,2]
[421889660,1778296240000,-502.68902699,0.00015065,2]
[421889641,1778296240000,-500.0,0.00015065,2]
[421889661,1778296240000,-500.0,0.00015065,2]
[421889696,1778296240000,-502.40715268,0.00015065,2]
[421889695,1778296240000,-526.72524487,0.00015065,2]
[421889697,1778296240000,-500.0,0.00015065,2]
[421889698,1778296240000,-503.26592164,0.00015065,2]
[421889700,1778296240000,-502.95990696,0.00015065,2]
[421889701,1778296240000,-503.83529442,0.00015065,2]
[421889699,1778296240000,-523.81303457,0.00015065,2]
[421889703,1778296240000,-509.92215153,0.00015065,2]
[421889713,1778296240000,-500.0,0.00015065,2]
[421889714,1778296240000,-1790.2488,0.00015065,2]
[421889704,1778296240000,-500.95709323,0.00015065,2]
[421889705,1778296240000,-501.13124507,0.00015065,2]
[421889708,1778296240000,-639.99820797,0.00015065,2]
[421889702,1778296240000,-500.0,0.00015065,2]
[421889706,1778296240000,-500.0,0.00015065,2]
[421889707,1778296240000,-500.0,0.00015065,2]
[421889711,1778296240000,-500.0,0.00015065,2]
[421889710,1778296240000,-502.66606609,0.00015065,2]
[421889712,1778296240000,-500.0,0.00015065,2]
[421889709,1778296240000,-500.0,0.00015065,2]
[421889715,1778296240000,-500.0,0.00015065,2]
[421889716,1778296240000,-500.0,0.00015065,2]
[421889720,1778296240000,-500.0,0.00015065,2]
[421889717,1778296240000,-500.0,0.00015065,2]
[421889718,1778296240000,-501.81079207,0.00015065,2]
[421889719,1778296240000,-500.0,0.00015065,2]
[421889721,1778296240000,-500.0,0.00015066,2]
[421889723,1778296240000,-500.0,0.00015066,2]
[421889656,1778296240000,-502.41209582,0.00015065,2]
[421889693,1778296240000,-507.82054605,0.00015065,2]
[421889694,1778296240000,-501.48270478,0.00015065,2]
[421889722,1778296240000,-524.10427394,0.00015066,2]
[421889691,1778296240000,-500.0,0.00015065,2]
[421889681,1778296240000,-503.48330584,0.00015065,2]
[421889658,1778296240000,-500.0,0.00015065,2]
[421889666,1778296240000,-501.71502771,0.00015065,2]
[421889662,1778296240000,-500.0,0.00015065,2]
[421889665,1778296240000,-500.0,0.00015065,2]
[421889669,1778296240000,-500.0,0.00015065,2]
[421889670,1778296240000,-500.0,0.00015065,2]
[421889668,1778296240000,-500.0,0.00015065,2]
[421889724,1778296240000,-500.0,0.00015066,2]
[421889677,1778296240000,-500.68492161,0.00015065,2]
[421889678,1778296240000,-500.0,0.00015065,2]
[421889679,1778296240000,-500.0,0.00015065,2]
[421889673,1778296240000,-504.47896159,0.00015065,2]
[421889671,1778296240000,-500.0,0.00015065,2]
[421889663,1778296240000,-501.56791429,0.00015065,2]
[421889675,1778296240000,-502.16720609,0.00015065,2]
[421889686,1778296240000,-503.86959659,0.00015065,2]
[421889676,1778296240000,-503.88752932,0.00015065,2]
[421889690,1778296240000,-500.0,0.00015065,2]
[421889688,1778296240000,-421.45742152,0.00015065,2]
[421889687,1778296240000,-502.23806515,0.00015065,2]
[421889685,1778296240000,-500.0,0.00015065,2]
[421889692,1778296240000,-501.70224521,0.00015065,2]
[421889684,1778296240000,-153.70821454,0.00015065,2]
[421889674,1778296240000,-500.91793865,0.00015065,2]
[421889689,1778296240000,-501.03012709,0.00015065,2]
[421889672,1778296240000,-500.0,0.00015065,2]
[421889683,1778296240000,-500.0,0.00015065,2]
[421889682,1778296240000,-583.57865478,0.00015065,2]
[421889680,1778296240000,-405.83790603,0.00015065,2]
[421889754,1778296241000,-500.0,0.00015067,2]
[421889757,1778296241000,-500.0,0.00015067,2]
[421889756,1778296241000,-500.0,0.00015067,2]
[421889760,1778296241000,-500.0,0.00015067,2]
[421889758,1778296241000,-500.0,0.00015067,2]
[421889761,1778296241000,-500.0,0.00015067,2]
[421889763,1778296241000,-393.24053638,0.00015067,2]
[421889762,1778296241000,-500.0,0.00015067,2]
[421889764,1778296241000,-191.38779156,0.00015067,2]
[421889767,1778296241000,-290.26182832,0.00015067,2]
[421889770,1778296241000,-500.0,0.00015067,2]
[421889759,1778296241000,-500.0,0.00015067,2]
[421889776,1778296241000,-500.0,0.00015067,2]
[421889775,1778296241000,-500.0,0.00015067,2]
[421889771,1778296241000,-500.0,0.00015067,2]
[421889773,1778296241000,-500.0,0.00015067,2]
[421889768,1778296241000,-500.0,0.00015067,2]
[421889779,1778296241000,-500.0,0.00015067,2]
[421889772,1778296241000,-500.0,0.00015067,2]
[421889774,1778296241000,-500.0,0.00015067,2]
[421889780,1778296241000,-500.0,0.00015067,2]